[Event "Titled Tuesday Blitz May 16 Early 2023"]
[White "Badmatsyrenov, Oleg"]
[Black "Tabatabaei, M. Amin"]
[WhiteFideId "24115762"]
[BlackFideId "12521213"]
[WhiteElo "2396"]
[BlackElo "2575"]
[Result "0-1"]
[Round "03"]
[TimeControl "180+2"]
[Date "2023.05.16"]
[WhiteClock "0:00:03"]
[BlackClock "0:00:22"]

1. e4 {[%clk 0:03:00]}  c5 {[%clk 0:02:59]} 2. Nf3 {[%clk 0:03:00]}  e6 {[%clk 0:02:59]} 3. d4 {[%clk 0:03:00]}  cxd4 {[%clk 0:03:00]} 4. Nxd4 {[%clk 0:03:01]}  Nc6 {[%clk 0:03:01]} 5. Nc3 {[%clk 0:03:01]}  a6 {[%clk 0:03:02]} 6. Nxc6 {[%clk 0:03:00]}  bxc6 {[%clk 0:03:03]} 7. e5 {[%clk 0:03:00]}  Qc7 {[%clk 0:02:40]} 8. f4 {[%clk 0:02:58]}  d6 {[%clk 0:02:32]} 9. exd6 {[%clk 0:02:56]}  Bxd6 {[%clk 0:02:33]} 10. Ne4 {[%clk 0:02:00]}  Bxf4 {[%clk 0:02:30]} 11. Bxf4 {[%clk 0:02:00]}  Qxf4 {[%clk 0:02:31]} 12. Qd4 {[%clk 0:01:59]}  e5 {[%clk 0:02:07]} 13. Nd6+ {[%clk 0:01:30]}  Kf8 {[%clk 0:02:01]} 14. Qxf4 {[%clk 0:01:29]}  exf4 {[%clk 0:02:02]} 15. Nxc8 {[%clk 0:01:30]}  Rxc8 {[%clk 0:02:00]} 16. Bxa6 {[%clk 0:01:30]}  Re8+ {[%clk 0:01:58]} 17. Kd2 {[%clk 0:01:28]}  Nf6 {[%clk 0:01:58]} 18. Bd3 {[%clk 0:01:26]}  g5 {[%clk 0:01:54]} 19. a4 {[%clk 0:01:25]}  Nd5 {[%clk 0:01:43]} 20. a5 {[%clk 0:01:22]}  Kg7 {[%clk 0:01:38]} 21. a6 {[%clk 0:01:22]}  Ra8 {[%clk 0:01:38]} 22. Ra5 {[%clk 0:01:18]}  Rhd8 {[%clk 0:01:36]} 23. Kc1 {[%clk 0:00:52]}  Kf6 {[%clk 0:01:26]} 24. Rf1 {[%clk 0:00:46]}  Ne3 {[%clk 0:01:16]} 25. Rf2 {[%clk 0:00:46]}  h6 {[%clk 0:01:08]} 26. h4 {[%clk 0:00:40]}  c5 {[%clk 0:00:52]} 27. hxg5+ {[%clk 0:00:39]}  hxg5 {[%clk 0:00:52]} 28. Rxc5 {[%clk 0:00:37]}  Rxa6 {[%clk 0:00:53]} 29. g3 {[%clk 0:00:25]}  Ra1+ {[%clk 0:00:46]} 30. Kd2 {[%clk 0:00:25]}  Nf1+ {[%clk 0:00:33]} 31. Kc3 {[%clk 0:00:18]}  Nxg3 {[%clk 0:00:34]} 32. b4 {[%clk 0:00:17]}  Rb1 {[%clk 0:00:28]} 33. Rh2 {[%clk 0:00:15]}  f3 {[%clk 0:00:23]} 34. Rf2 {[%clk 0:00:12]}  g4 {[%clk 0:00:24]} 35. Rc4 {[%clk 0:00:12]}  Kg5 {[%clk 0:00:24]} 36. b5 {[%clk 0:00:07]}  Rxb5 {[%clk 0:00:21]} 37. Rxg4+ {[%clk 0:00:03]}  Kxg4 {[%clk 0:00:22]} 0-1


[Site "https://www.chess.com"]

[Event "Titled Tuesday Blitz May 16 Early 2023"]
[White "Vaishali, Rameshbabu"]
[Black "Van Foreest, Jorden"]
[WhiteFideId "5091756"]
[BlackFideId "1039784"]
[WhiteElo "2410"]
[BlackElo "2633"]
[Result "0-1"]
[Round "03"]
[TimeControl "180+2"]
[Date "2023.05.16"]
[WhiteClock "0:00:02"]
[BlackClock "0:00:57"]

1. e4 {[%clk 0:03:00]}  c6 {[%clk 0:03:00]} 2. d4 {[%clk 0:02:59]}  d5 {[%clk 0:03:01]} 3. e5 {[%clk 0:03:00]}  c5 {[%clk 0:03:01]} 4. Nf3 {[%clk 0:02:58]}  cxd4 {[%clk 0:03:01]} 5. Qxd4 {[%clk 0:02:58]}  Nc6 {[%clk 0:02:57]} 6. Qf4 {[%clk 0:02:58]}  h6 {[%clk 0:02:55]} 7. Bd3 {[%clk 0:02:52]}  g5 {[%clk 0:02:54]} 8. Qa4 {[%clk 0:02:19]}  Bd7 {[%clk 0:02:53]} 9. Qb3 {[%clk 0:02:17]}  g4 {[%clk 0:02:54]} 10. Nh4 {[%clk 0:01:45]}  Nxe5 {[%clk 0:02:39]} 11. Qxd5 {[%clk 0:01:44]}  Nxd3+ {[%clk 0:02:39]} 12. Qxd3 {[%clk 0:01:43]}  e6 {[%clk 0:02:33]} 13. g3 {[%clk 0:00:44]}  Bc6 {[%clk 0:02:33]} 14. Qxd8+ {[%clk 0:00:44]}  Rxd8 {[%clk 0:02:34]} 15. O-O {[%clk 0:00:45]}  Nf6 {[%clk 0:02:25]} 16. Nc3 {[%clk 0:00:41]}  Nh7 {[%clk 0:02:23]} 17. Be3 {[%clk 0:00:37]}  Ng5 {[%clk 0:02:23]} 18. Rfd1 {[%clk 0:00:37]}  Rc8 {[%clk 0:02:19]} 19. Bxa7 {[%clk 0:00:29]}  Be7 {[%clk 0:02:00]} 20. Be3 {[%clk 0:00:25]}  O-O {[%clk 0:01:55]} 21. Kf1 {[%clk 0:00:21]}  Kg7 {[%clk 0:01:34]} 22. a4 {[%clk 0:00:18]}  f5 {[%clk 0:01:23]} 23. Rd3 {[%clk 0:00:10]}  Kf7 {[%clk 0:01:21]} 24. Rd2 {[%clk 0:00:07]}  Bb4 {[%clk 0:01:18]} 25. Bd4 {[%clk 0:00:06]}  Rfd8 {[%clk 0:01:17]} 26. Rad1 {[%clk 0:00:06]}  Nf3 {[%clk 0:01:14]} 27. Nxf3 {[%clk 0:00:04]}  Bxf3 {[%clk 0:01:15]} 28. Re1 {[%clk 0:00:04]}  h5 {[%clk 0:01:09]} 29. Re5 {[%clk 0:00:04]}  Rd7 {[%clk 0:01:03]} 30. Rb5 {[%clk 0:00:04]}  Be7 {[%clk 0:01:00]} 31. Ne2 {[%clk 0:00:03]}  Bc6 {[%clk 0:00:57]} 32. Rb4 {[%clk 0:00:02]}  Bxb4 {[%clk 0:00:57]} 0-1


[Site "https://www.chess.com"]

[Event "Titled Tuesday Blitz May 16 Early 2023"]
[White "Maghsoodloo, Parham"]
[Black "Gritsenko, Nikolai"]
[WhiteFideId "12539929"]
[BlackFideId "14112493"]
[WhiteElo "2655"]
[BlackElo "2389"]
[Result "1-0"]
[Round "03"]
[TimeControl "180+2"]
[Date "2023.05.16"]
[WhiteClock "0:02:01"]
[BlackClock "0:00:50"]

1. e4 {[%clk 0:03:00]}  d5 {[%clk 0:02:59]} 2. exd5 {[%clk 0:02:59]}  Nf6 {[%clk 0:03:00]} 3. Bb5+ {[%clk 0:02:57]}  Bd7 {[%clk 0:02:59]} 4. Bc4 {[%clk 0:02:57]}  Bg4 {[%clk 0:02:59]} 5. f3 {[%clk 0:02:55]}  Bc8 {[%clk 0:02:58]} 6. Nc3 {[%clk 0:02:50]}  Nbd7 {[%clk 0:02:58]} 7. Nge2 {[%clk 0:02:45]}  Nb6 {[%clk 0:02:58]} 8. Bb3 {[%clk 0:02:45]}  Nbxd5 {[%clk 0:02:58]} 9. Nxd5 {[%clk 0:02:45]}  Nxd5 {[%clk 0:02:58]} 10. d4 {[%clk 0:02:45]}  e6 {[%clk 0:02:55]} 11. O-O {[%clk 0:02:46]}  c5 {[%clk 0:02:49]} 12. c4 {[%clk 0:02:43]}  Nf6 {[%clk 0:02:49]} 13. Be3 {[%clk 0:02:43]}  b6 {[%clk 0:02:44]} 14. dxc5 {[%clk 0:02:40]}  Bxc5 {[%clk 0:02:40]} 15. Bxc5 {[%clk 0:02:41]}  bxc5 {[%clk 0:02:29]} 16. Ba4+ {[%clk 0:02:39]}  Ke7 {[%clk 0:02:15]} 17. Qb3 {[%clk 0:02:37]}  Qb6 {[%clk 0:02:00]} 18. Qe3 {[%clk 0:02:33]}  Ba6 {[%clk 0:01:57]} 19. b3 {[%clk 0:02:32]}  Rad8 {[%clk 0:01:55]} 20. Nf4 {[%clk 0:02:26]}  Rd4 {[%clk 0:01:49]} 21. Ne2 {[%clk 0:02:09]}  Rd6 {[%clk 0:01:45]} 22. Ng3 {[%clk 0:02:10]}  g6 {[%clk 0:01:38]} 23. Ne4 {[%clk 0:02:04]}  Rd4 {[%clk 0:00:50]} 24. Qg5 {[%clk 0:02:01]} 1-0


[Site "https://www.chess.com"]

[Event "Titled Tuesday Blitz May 16 Early 2023"]
[White "Tatarinov, Dmitry"]
[Black "Matlakov, Maxim"]
[WhiteFideId "24160067"]
[BlackFideId "4168003"]
[WhiteElo "2326"]
[BlackElo "2666"]
[Result "1-0"]
[Round "03"]
[TimeControl "180+2"]
[Date "2023.05.16"]
[WhiteClock "0:00:11"]
[BlackClock "0:00:10"]

1. c4 {[%clk 0:02:59]}  c6 {[%clk 0:02:57]} 2. d4 {[%clk 0:02:58]}  d5 {[%clk 0:02:57]} 3. cxd5 {[%clk 0:02:59]}  cxd5 {[%clk 0:02:57]} 4. Nc3 {[%clk 0:02:59]}  e6 {[%clk 0:02:56]} 5. Bf4 {[%clk 0:03:00]}  Nc6 {[%clk 0:02:57]} 6. e3 {[%clk 0:03:00]}  Bd6 {[%clk 0:02:57]} 7. Bxd6 {[%clk 0:02:59]}  Qxd6 {[%clk 0:02:58]} 8. Nf3 {[%clk 0:03:00]}  Nge7 {[%clk 0:02:58]} 9. Bd3 {[%clk 0:02:57]}  h6 {[%clk 0:02:57]} 10. O-O {[%clk 0:02:58]}  O-O {[%clk 0:02:57]} 11. Rc1 {[%clk 0:02:57]}  Bd7 {[%clk 0:02:57]} 12. Qe2 {[%clk 0:02:53]}  Rac8 {[%clk 0:02:56]} 13. Bb1 {[%clk 0:02:48]}  Rfd8 {[%clk 0:02:54]} 14. Rfd1 {[%clk 0:02:49]}  Be8 {[%clk 0:02:54]} 15. a3 {[%clk 0:02:44]}  Na5 {[%clk 0:02:52]} 16. Ne5 {[%clk 0:02:41]}  Nc4 {[%clk 0:02:46]} 17. Nxc4 {[%clk 0:02:41]}  dxc4 {[%clk 0:02:34]} 18. e4 {[%clk 0:02:39]}  b5 {[%clk 0:02:33]} 19. e5 {[%clk 0:02:37]}  Qb6 {[%clk 0:02:32]} 20. Qe4 {[%clk 0:02:33]}  Nf5 {[%clk 0:02:18]} 21. d5 {[%clk 0:02:31]}  g6 {[%clk 0:02:10]} 22. Qf4 {[%clk 0:02:22]}  a5 {[%clk 0:01:54]} 23. Ne4 {[%clk 0:02:13]}  Kg7 {[%clk 0:01:49]} 24. Nf6 {[%clk 0:02:11]}  b4 {[%clk 0:01:36]} 25. Bxf5 {[%clk 0:01:46]}  exf5 {[%clk 0:01:35]} 26. axb4 {[%clk 0:01:37]}  Qxb4 {[%clk 0:01:35]} 27. h4 {[%clk 0:01:28]}  Ba4 {[%clk 0:01:29]} 28. Re1 {[%clk 0:01:23]}  Qxb2 {[%clk 0:01:27]} 29. h5 {[%clk 0:01:23]}  Bb3 {[%clk 0:01:03]} 30. hxg6 {[%clk 0:01:22]}  fxg6 {[%clk 0:01:04]} 31. d6 {[%clk 0:01:04]}  a4 {[%clk 0:01:03]} 32. d7 {[%clk 0:01:02]}  Ra8 {[%clk 0:01:03]} 33. Ne8+ {[%clk 0:01:02]}  Rxe8 {[%clk 0:01:02]} 34. dxe8=Q {[%clk 0:01:02]}  Rxe8 {[%clk 0:01:02]} 35. e6 {[%clk 0:01:03]}  Qf6 {[%clk 0:00:59]} 36. Qd6 {[%clk 0:00:41]}  h5 {[%clk 0:00:56]} 37. Re3 {[%clk 0:00:40]}  Re7 {[%clk 0:00:55]} 38. Rce1 {[%clk 0:00:40]}  h4 {[%clk 0:00:52]} 39. Qc5 {[%clk 0:00:31]}  Kh6 {[%clk 0:00:34]} 40. Re5 {[%clk 0:00:26]}  Qg5 {[%clk 0:00:34]} 41. R1e3 {[%clk 0:00:20]}  Qf6 {[%clk 0:00:30]} 42. Rd5 {[%clk 0:00:16]}  Rxe6 {[%clk 0:00:27]} 43. Rxe6 {[%clk 0:00:16]}  Qxe6 {[%clk 0:00:28]} 44. Qf8+ {[%clk 0:00:15]}  Kg5 {[%clk 0:00:28]} 45. Qd8+ {[%clk 0:00:11]}  Kh5 {[%clk 0:00:26]} 46. Rd4 {[%clk 0:00:12]}  Qe1+ {[%clk 0:00:25]} 47. Kh2 {[%clk 0:00:12]}  Qe5+ {[%clk 0:00:19]} 48. f4 {[%clk 0:00:12]}  Qe1 {[%clk 0:00:10]} 49. Qg5# {[%clk 0:00:11]} 1-0


[Site "https://www.chess.com"]

[Event "Titled Tuesday Blitz May 16 Early 2023"]
[White "Pap, Gyula"]
[Black "AnujShrivatri21"]
[WhiteFideId "725323"]
[WhiteElo "2519"]
[BlackElo "2704"]
[Result "1/2-1/2"]
[Round "03"]
[TimeControl "180+2"]
[Date "2023.05.16"]
[WhiteClock "0:00:03"]
[BlackClock "0:00:14"]

1. Nf3 {[%clk 0:03:00]}  Nf6 {[%clk 0:02:57]} 2. g3 {[%clk 0:03:00]}  g6 {[%clk 0:02:57]} 3. b3 {[%clk 0:03:00]}  d6 {[%clk 0:02:55]} 4. d4 {[%clk 0:02:59]}  Bg7 {[%clk 0:02:51]} 5. Bb2 {[%clk 0:03:00]}  a5 {[%clk 0:02:50]} 6. a3 {[%clk 0:02:56]}  b5 {[%clk 0:02:22]} 7. Bg2 {[%clk 0:02:54]}  Bb7 {[%clk 0:02:22]} 8. O-O {[%clk 0:02:55]}  Nbd7 {[%clk 0:02:18]} 9. Qd3 {[%clk 0:02:43]}  O-O {[%clk 0:02:16]} 10. Nbd2 {[%clk 0:02:41]}  b4 {[%clk 0:02:08]} 11. axb4 {[%clk 0:02:36]}  axb4 {[%clk 0:02:09]} 12. Qb5 {[%clk 0:02:25]}  Rb8 {[%clk 0:02:05]} 13. Qa5 {[%clk 0:02:16]}  Ne4 {[%clk 0:01:52]} 14. Rfd1 {[%clk 0:01:46]}  c5 {[%clk 0:01:42]} 15. Qxd8 {[%clk 0:01:14]}  Rfxd8 {[%clk 0:01:43]} 16. Nc4 {[%clk 0:01:15]}  Bc6 {[%clk 0:01:00]} 17. d5 {[%clk 0:00:58]}  Bb5 {[%clk 0:00:54]} 18. Bxg7 {[%clk 0:00:57]}  Kxg7 {[%clk 0:00:55]} 19. Nfd2 {[%clk 0:00:52]}  Nxd2 {[%clk 0:00:54]} 20. Nxd2 {[%clk 0:00:53]}  Ra8 {[%clk 0:00:52]} 21. e4 {[%clk 0:00:51]}  g5 {[%clk 0:00:43]} 22. Bf1 {[%clk 0:00:50]}  Bxf1 {[%clk 0:00:42]} 23. Kxf1 {[%clk 0:00:51]}  g4 {[%clk 0:00:41]} 24. Nc4 {[%clk 0:00:50]}  Kf6 {[%clk 0:00:41]} 25. Ke2 {[%clk 0:00:48]}  Ne5 {[%clk 0:00:38]} 26. Nxe5 {[%clk 0:00:43]}  Kxe5 {[%clk 0:00:38]} 27. Ke3 {[%clk 0:00:44]}  h5 {[%clk 0:00:37]} 28. h3 {[%clk 0:00:39]}  f5 {[%clk 0:00:35]} 29. exf5 {[%clk 0:00:36]}  Kxf5 {[%clk 0:00:36]} 30. hxg4+ {[%clk 0:00:35]}  hxg4 {[%clk 0:00:36]} 31. Rh1 {[%clk 0:00:35]}  Rxa1 {[%clk 0:00:36]} 32. Rxa1 {[%clk 0:00:36]}  Ke5 {[%clk 0:00:36]} 33. Rh1 {[%clk 0:00:28]}  Rf8 {[%clk 0:00:21]} 34. Rh7 {[%clk 0:00:24]}  Kxd5 {[%clk 0:00:20]} 35. Rxe7 {[%clk 0:00:20]}  Rf3+ {[%clk 0:00:20]} 36. Ke2 {[%clk 0:00:20]}  Rc3 {[%clk 0:00:20]} 37. Kd2 {[%clk 0:00:19]}  Rf3 {[%clk 0:00:21]} 38. Ke2 {[%clk 0:00:12]}  Rc3 {[%clk 0:00:19]} 39. Kd2 {[%clk 0:00:12]}  c4 {[%clk 0:00:19]} 40. bxc4+ {[%clk 0:00:08]}  Rxc4 {[%clk 0:00:20]} 41. Rg7 {[%clk 0:00:02]}  Rd4+ {[%clk 0:00:19]} 42. Ke3 {[%clk 0:00:02]}  Re4+ {[%clk 0:00:20]} 43. Kd3 {[%clk 0:00:02]}  Rd4+ {[%clk 0:00:20]} 44. Ke3 {[%clk 0:00:03]}  Kc5 {[%clk 0:00:17]} 45. Rg5+ {[%clk 0:00:03]}  d5 {[%clk 0:00:14]} 46. Rg8 {[%clk 0:00:03]}  Re4+ {[%clk 0:00:14]} 47. Kd3 {[%clk 0:00:03]}  Rd4+ {[%clk 0:00:15]} 48. Ke3 {[%clk 0:00:03]}  Rc4 {[%clk 0:00:15]} 49. Kd3 {[%clk 0:00:03]}  Kd6 {[%clk 0:00:14]} 50. Rg6+ {[%clk 0:00:03]}  Kc5 {[%clk 0:00:14]} 51. Rg8 {[%clk 0:00:03]}  Rd4+ {[%clk 0:00:14]} 52. Ke3 {[%clk 0:00:03]} 1/2-1/2


[Site "https://www.chess.com"]

[Event "Titled Tuesday Blitz May 16 Early 2023"]
[White "Dimitrov, Atanas"]
[Black "Ibarra Jerez, Jose Carlos"]
[WhiteFideId "2901315"]
[BlackFideId "2226332"]
[WhiteElo "2704"]
[BlackElo "2638"]
[Result "1/2-1/2"]
[Round "03"]
[TimeControl "180+2"]
[Date "2023.05.16"]
[WhiteClock "0:00:16"]
[BlackClock "0:00:24"]

1. Nf3 {[%clk 0:03:00]}  Nf6 {[%clk 0:02:59]} 2. c4 {[%clk 0:03:00]}  d6 {[%clk 0:02:59]} 3. Nc3 {[%clk 0:03:00]}  e5 {[%clk 0:02:58]} 4. e3 {[%clk 0:03:00]}  g6 {[%clk 0:02:57]} 5. b3 {[%clk 0:03:01]}  Bg7 {[%clk 0:02:55]} 6. Bb2 {[%clk 0:03:01]}  O-O {[%clk 0:02:55]} 7. Be2 {[%clk 0:03:02]}  e4 {[%clk 0:02:56]} 8. Nd4 {[%clk 0:03:01]}  Re8 {[%clk 0:02:53]} 9. O-O {[%clk 0:03:02]}  Nbd7 {[%clk 0:02:53]} 10. d3 {[%clk 0:03:01]}  exd3 {[%clk 0:02:51]} 11. Bxd3 {[%clk 0:03:02]}  Nc5 {[%clk 0:02:52]} 12. Be2 {[%clk 0:03:01]}  a5 {[%clk 0:02:50]} 13. Rc1 {[%clk 0:02:50]}  c6 {[%clk 0:02:49]} 14. h3 {[%clk 0:02:47]}  Qb6 {[%clk 0:02:49]} 15. Ba3 {[%clk 0:02:40]}  Bd7 {[%clk 0:02:44]} 16. Bf3 {[%clk 0:02:34]}  Rad8 {[%clk 0:02:42]} 17. Na4 {[%clk 0:02:25]}  Nxa4 {[%clk 0:02:38]} 18. bxa4 {[%clk 0:02:26]}  Bc8 {[%clk 0:02:26]} 19. c5 {[%clk 0:02:17]}  dxc5 {[%clk 0:02:26]} 20. Bxc5 {[%clk 0:02:18]}  Qc7 {[%clk 0:02:22]} 21. Qb3 {[%clk 0:02:18]}  Qe5 {[%clk 0:02:17]} 22. Bb6 {[%clk 0:02:10]}  Rd7 {[%clk 0:02:03]} 23. Rc5 {[%clk 0:02:07]}  Qb8 {[%clk 0:02:00]} 24. Rxa5 {[%clk 0:01:56]}  Ne4 {[%clk 0:01:54]} 25. Bxe4 {[%clk 0:01:45]}  Rxe4 {[%clk 0:01:54]} 26. Nf3 {[%clk 0:01:38]}  Re8 {[%clk 0:01:24]} 27. Bd4 {[%clk 0:01:30]}  Bf8 {[%clk 0:01:22]} 28. Rc1 {[%clk 0:01:20]}  Qc7 {[%clk 0:01:20]} 29. Re5 {[%clk 0:01:16]}  Rde7 {[%clk 0:01:13]} 30. Rxe7 {[%clk 0:01:15]}  Rxe7 {[%clk 0:01:14]} 31. Qb2 {[%clk 0:01:12]}  Re8 {[%clk 0:01:12]} 32. Qc3 {[%clk 0:01:11]}  Bf5 {[%clk 0:01:10]} 33. a5 {[%clk 0:01:09]}  Ra8 {[%clk 0:01:06]} 34. Bb6 {[%clk 0:01:09]}  Qd7 {[%clk 0:01:06]} 35. Nd4 {[%clk 0:01:03]}  Be4 {[%clk 0:00:58]} 36. Ne2 {[%clk 0:00:54]}  Re8 {[%clk 0:00:56]} 37. Ng3 {[%clk 0:00:53]}  Bd5 {[%clk 0:00:56]} 38. Rd1 {[%clk 0:00:50]}  Qe6 {[%clk 0:00:55]} 39. a3 {[%clk 0:00:44]}  h5 {[%clk 0:00:55]} 40. Ne2 {[%clk 0:00:44]}  Qe4 {[%clk 0:00:55]} 41. Nf4 {[%clk 0:00:42]}  Ba2 {[%clk 0:00:43]} 42. Qb2 {[%clk 0:00:40]}  Be6 {[%clk 0:00:30]} 43. Nxe6 {[%clk 0:00:39]}  Qxe6 {[%clk 0:00:31]} 44. Bd4 {[%clk 0:00:38]}  Qe7 {[%clk 0:00:30]} 45. Rb1 {[%clk 0:00:36]}  Qxa3 {[%clk 0:00:28]} 46. Qxa3 {[%clk 0:00:24]}  Bxa3 {[%clk 0:00:29]} 47. Rxb7 {[%clk 0:00:25]}  Ra8 {[%clk 0:00:28]} 48. Bb6 {[%clk 0:00:24]}  Bb4 {[%clk 0:00:27]} 49. Rc7 {[%clk 0:00:19]}  c5 {[%clk 0:00:27]} 50. Bxc5 {[%clk 0:00:18]}  Bxa5 {[%clk 0:00:27]} 51. Rb7 {[%clk 0:00:18]}  Bc3 {[%clk 0:00:27]} 52. g3 {[%clk 0:00:16]}  Be5 {[%clk 0:00:28]} 53. Kg2 {[%clk 0:00:17]}  Rd8 {[%clk 0:00:27]} 54. Rb5 {[%clk 0:00:15]}  Bf6 {[%clk 0:00:26]} 55. Rb6 {[%clk 0:00:14]}  Kg7 {[%clk 0:00:26]} 56. Rb7 {[%clk 0:00:13]}  Rd5 {[%clk 0:00:26]} 57. Be7 {[%clk 0:00:13]}  Bc3 {[%clk 0:00:26]} 58. Bb4 {[%clk 0:00:12]}  Be5 {[%clk 0:00:25]} 59. Ba3 {[%clk 0:00:11]}  Rd2 {[%clk 0:00:25]} 60. Rb5 {[%clk 0:00:10]}  Bf6 {[%clk 0:00:24]} 61. Rb3 {[%clk 0:00:08]}  Ra2 {[%clk 0:00:24]} 62. Bb4 {[%clk 0:00:08]}  Rc2 {[%clk 0:00:24]} 63. Rd3 {[%clk 0:00:08]}  Be5 {[%clk 0:00:24]} 64. g4 {[%clk 0:00:08]}  hxg4 {[%clk 0:00:23]} 65. hxg4 {[%clk 0:00:09]}  Rc4 {[%clk 0:00:23]} 66. Bd6 {[%clk 0:00:07]}  Bxd6 {[%clk 0:00:22]} 67. Rxd6 {[%clk 0:00:08]}  Rxg4+ {[%clk 0:00:22]} 68. Kf3 {[%clk 0:00:09]}  Ra4 {[%clk 0:00:23]} 69. Rd7 {[%clk 0:00:08]}  Kf6 {[%clk 0:00:23]} 70. Rd3 {[%clk 0:00:09]}  Kg5 {[%clk 0:00:23]} 71. Rb3 {[%clk 0:00:09]}  f5 {[%clk 0:00:22]} 72. Kg3 {[%clk 0:00:10]}  Rg4+ {[%clk 0:00:22]} 73. Kf3 {[%clk 0:00:10]}  Rh4 {[%clk 0:00:23]} 74. Kg3 {[%clk 0:00:11]}  Re4 {[%clk 0:00:23]} 75. Kf3 {[%clk 0:00:11]}  Re6 {[%clk 0:00:21]} 76. Rb4 {[%clk 0:00:11]}  Kf6 {[%clk 0:00:22]} 77. Rb8 {[%clk 0:00:11]}  Kg5 {[%clk 0:00:21]} 78. Rb3 {[%clk 0:00:10]}  Rc6 {[%clk 0:00:22]} 79. Rb4 {[%clk 0:00:10]}  Rc1 {[%clk 0:00:22]} 80. Ra4 {[%clk 0:00:10]}  Rb1 {[%clk 0:00:22]} 81. Rc4 {[%clk 0:00:10]}  Rb2 {[%clk 0:00:22]} 82. Rd4 {[%clk 0:00:11]}  Kf6 {[%clk 0:00:22]} 83. Rd6+ {[%clk 0:00:11]}  Kf7 {[%clk 0:00:22]} 84. Ra6 {[%clk 0:00:11]}  g5 {[%clk 0:00:22]} 85. Kg3 {[%clk 0:00:11]}  Rb4 {[%clk 0:00:22]} 86. f3 {[%clk 0:00:04]}  Rb1 {[%clk 0:00:20]} 87. e4 {[%clk 0:00:03]}  fxe4 {[%clk 0:00:11]} 88. fxe4 {[%clk 0:00:04]}  Re1 {[%clk 0:00:11]} 89. Kg4 {[%clk 0:00:04]}  Rxe4+ {[%clk 0:00:12]} 90. Kxg5 {[%clk 0:00:04]}  Rb4 {[%clk 0:00:12]} 91. Ra5 {[%clk 0:00:04]}  Ke6 {[%clk 0:00:12]} 92. Ra6+ {[%clk 0:00:04]}  Ke5 {[%clk 0:00:13]} 93. Ra5+ {[%clk 0:00:05]}  Ke4 {[%clk 0:00:13]} 94. Rf5 {[%clk 0:00:05]}  Rb1 {[%clk 0:00:13]} 95. Rf4+ {[%clk 0:00:06]}  Ke5 {[%clk 0:00:14]} 96. Rf5+ {[%clk 0:00:06]}  Ke4 {[%clk 0:00:14]} 97. Rf4+ {[%clk 0:00:07]}  Ke3 {[%clk 0:00:15]} 98. Rf5 {[%clk 0:00:06]}  Rb8 {[%clk 0:00:15]} 99. Rf7 {[%clk 0:00:07]}  Ke4 {[%clk 0:00:16]} 100. Re7+ {[%clk 0:00:07]}  Kf3 {[%clk 0:00:16]} 101. Re1 {[%clk 0:00:07]}  Rb5+ {[%clk 0:00:16]} 102. Kf6 {[%clk 0:00:08]}  Kf2 {[%clk 0:00:16]} 103. Re5 {[%clk 0:00:08]}  Rb6+ {[%clk 0:00:17]} 104. Re6 {[%clk 0:00:08]}  Rb8 {[%clk 0:00:17]} 105. Re5 {[%clk 0:00:08]}  Kf3 {[%clk 0:00:17]} 106. Rf5+ {[%clk 0:00:09]}  Kg4 {[%clk 0:00:17]} 107. Rg5+ {[%clk 0:00:09]}  Kf4 {[%clk 0:00:18]} 108. Rf5+ {[%clk 0:00:10]}  Ke4 {[%clk 0:00:19]} 109. Re5+ {[%clk 0:00:11]}  Kf4 {[%clk 0:00:19]} 110. Rf5+ {[%clk 0:00:11]}  Ke4 {[%clk 0:00:19]} 111. Re5+ {[%clk 0:00:12]}  Kd4 {[%clk 0:00:20]} 112. Rf5 {[%clk 0:00:12]}  Rb6+ {[%clk 0:00:20]} 113. Kg5 {[%clk 0:00:13]}  Ke4 {[%clk 0:00:21]} 114. Rf4+ {[%clk 0:00:13]}  Ke3 {[%clk 0:00:20]} 115. Rf6 {[%clk 0:00:14]}  Rb5+ {[%clk 0:00:21]} 116. Rf5 {[%clk 0:00:14]}  Rb6 {[%clk 0:00:21]} 117. Rf6 {[%clk 0:00:14]}  Rb8 {[%clk 0:00:22]} 118. Rf7 {[%clk 0:00:14]}  Ke4 {[%clk 0:00:22]} 119. Re7+ {[%clk 0:00:14]}  Kf3 {[%clk 0:00:22]} 120. Rf7+ {[%clk 0:00:15]}  Kg3 {[%clk 0:00:22]} 121. Rf5 {[%clk 0:00:15]}  Rg8+ {[%clk 0:00:22]} 122. Kf6 {[%clk 0:00:15]}  Kg4 {[%clk 0:00:23]} 123. Ra5 {[%clk 0:00:15]}  Re8 {[%clk 0:00:22]} 124. Ra4+ {[%clk 0:00:15]}  Kh5 {[%clk 0:00:22]} 125. Ra5+ {[%clk 0:00:15]}  Kh6 {[%clk 0:00:22]} 126. Ra1 {[%clk 0:00:15]}  Rf8+ {[%clk 0:00:22]} 127. Ke7 {[%clk 0:00:16]}  Rf2 {[%clk 0:00:23]} 128. Rh1+ {[%clk 0:00:16]}  Kg6 {[%clk 0:00:23]} 129. Rg1+ {[%clk 0:00:17]}  Kf5 {[%clk 0:00:23]} 130. Kd6 {[%clk 0:00:16]}  Rd2+ {[%clk 0:00:23]} 131. Kc5 {[%clk 0:00:16]}  Ra2 {[%clk 0:00:24]} 132. Kd4 {[%clk 0:00:16]}  Ra4+ {[%clk 0:00:23]} 133. Kc3 {[%clk 0:00:17]}  Rg4 {[%clk 0:00:23]} 134. Rxg4 {[%clk 0:00:16]}  Kxg4 {[%clk 0:00:24]} 1/2-1/2


[Site "https://www.chess.com"]